Cogmind - Beta 14 @@@ ROGUE MODE // 2024.11.04 @ 21:35:37 Player: OG DANIEL Result: Destroyed by G-47 Trooper with Particle Gun Performance ------------- Evolutions (1) 500 Regions Visited (2) 400 Robots Destroyed (23) 115 Value Destroyed (609) 609 Prototype IDs (0) 0 Alien Tech Used (0) 0 Bonus (0) 0 TOTAL SCORE: 1624 Bonus ------- None Cogmind --------- Core Integrity 0/400 Matter 216/300 Energy 100/100 System Corruption 0% Temperature Cool (12) Movement Core (50) Location -9/Materials Parts ------- > --- POWER (1) -------- (None) > --- PROPULSION (2) --- (None) > --- UTILITY (2) ------ (None) > --- WEAPON (4) ------- Light Assault Rifle > --- INVENTORY (5) ---- Light Ion Engine Compact Wheel Small Storage Unit Small Laser Heavy Assault Rifle Peak State ------------ > --- POWER ------------ Ion Engine > --- PROPULSION ------- Aluminum Leg Aluminum Leg > --- UTILITY ---------- Large Storage Unit Light Armor Plating > --- WEAPON ----------- Medium Laser Small Laser Light Assault Rifle Light Assault Rifle > --- INVENTORY -------- Ion Engine Light Ion Engine Light Nuclear Core Light Treads Light Treads Wheel Compact Wheel Small Storage Unit [Rating: 10] Favorites ----------- Power Ion Engine Engine Ion Engine Propulsion Light Treads Treads Light Treads Leg Aluminum Leg Utility Large Storage Unit Storage Large Storage Unit Protection Light Armor Plating Weapon Light Assault Rifle Energy Gun Medium Laser Energy Cannon Beam Cannon Ballistic Gun Light Assault Rifle Build | -11 -10 -9 ------- Run | Yrd Mat Mat Slots Evolved 2 | . . 2 Power . | . . . Propulsion . | . . . Utility . | . . . Weapon 2 | . . 2 Parts Attached 24 | 6 7 11 Power 4 | 1 2 1 Engine 4 | 1 2 1 Core . | . . . Reactor . | . . . Propulsion 6 | 2 2 2 Treads 4 | 2 . 2 Leg 2 | . 2 . Wheel . | . . . Hover . | . . . Flight . | . . . Utility 4 | 1 1 2 Device . | . . . Storage 2 | 1 1 . Processor . | . . . Hackware . | . . . Protection 2 | . . 2 Artifact . | . . . Weapon 10 | 2 2 6 Energy Gun 3 | . 1 2 Energy Cannon 1 | . . 1 Ballistic Gun 6 | 2 1 3 Ballistic Cannon . | . . . Launcher . | . . . Special Weapon . | . . . Impact Weapon . | . . . Slashing Weapon . | . . . Piercing Weapon . | . . . Special Melee Weapon . | . . . Unidentified Prototypes . | . . . Parts Lost 12 | . . 12 Power 2 | . . 2 Propulsion 2 | . . 2 Utility 3 | . . 3 Weapon 5 | . . 5 Highest Loss Streak 12 | . . 12 To Critical Strikes . | . . . Average Slot Usage (%) 89 | . 85 94 Engine 12 | . 14 9 Treads 15 | . 25 3 Leg 9 | . 2 17 Storage 12 | . 14 10 Protection 4 | . . 9 Energy Gun 13 | . 7 20 Ballistic Gun 20 | . 20 21 Peak Build Rating 10 | 6 8 10 Average Rating 7 | 5 6 9 On Entrance 4 | . 6 7 Naked Turns . | . . . Heaviest Build 33 | 13 28 33 Greatest Support 40 | 40 40 40 Greatest Overweight (x) 10 | . 1 10 Average Overweight (x) . | . . . Largest Inventory Capacity 15 | 8 15 15 Average Capacity 12 | 7 10 14 Most Carried 14 | 6 10 14 Average Carried 9 | 3 8 11 Final Capacity 15 | 8 15 5 Final Carried 10 | 6 10 5 Class Distribution -------------------- 60% | Mutant 34% | Tank 4% | Scavenger-Tank Dominant Class ---------------- Mutant | -10/Materials Tank | -9/Materials Resources | -11 -10 -9 ----------- Run | Yrd Mat Mat Matter Collected 498 | 192 149 157 Remotely . | . . . Salvage Created 795 | . 473 322 Parts 57 | . 31 26 Haulers Intercepted . | . . . Recyclers Shooed 2 | . 1 1 Parts Field Recycled . | . . . Retrieved Matter . | . . . Parts Self-Destructed . | . . . Prevented . | . . . Kills | -11 -10 -9 ------- Run | Yrd Mat Mat Combat Hostiles Destroyed 20 | . 10 10 Guns 20 | . 10 10 Classes Destroyed 6 | . 4 2 Recycler 1 | . 1 . Operator 1 | . . 1 Watcher 1 | . 1 . Swarmer 7 | . 2 5 Grunt 10 | . 8 2 Sentry 3 | . . 3 Best Kill Streak 5 | . 3 5 Combat Bots Only 4 | . 2 4 Max Kills in Single Turn 1 | . 1 1 Gunslinging . | . . . Exploded . | . . . Melee . | . . . Uniques/NPCs Destroyed . | . . . Combat | -11 -10 -9 -------- Run | Yrd Mat Mat Hostile Shots Fired 213 | . 47 166 Missed 35 | . 12 23 Damage Taken 1836 | . 419 1417 Core 490 | . 88 402 Absorbed by Shields . | . . . Core Remaining (%) 82 | 100 64 . Volleys Fired 69 | . 36 33 Largest 4 | . 2 4 Hottest 150 | . 70 150 Shots Fired 171 | . 72 99 Gun 170 | . 72 98 Cannon 1 | . . 1 Launcher . | . . . Special . | . . . Kinetic 108 | . 54 54 Thermal 63 | . 18 45 Explosive . | . . . Electromagnetic . | . . . Robot Hit Streak 13 | . 13 11 Robot Miss Streak 4 | . 3 4 Penetration Max . | . . . Secondary Targets 2 | . . 2 Max Gunslinging Chain 1 | . . 1 Shots Hit Robots 94 | . 45 49 Core Hits 47 | . 25 22 Critical Kills . | . . . Critical Parts Destroyed 1 | . 1 . Critical Strikes 4 | . 2 2 Burn 3 | . 1 2 Destroy 1 | . 1 . Melee Attacks . | . . . Impact . | . . . Slashing . | . . . Piercing . | . . . Sneak Attacks . | . . . Combat Hostiles . | . . . Follow-up Attacks . | . . . Damage Inflicted 1015 | . 490 525 Guns 1015 | . 490 525 Cannons . | . . . Explosions . | . . . Melee . | . . . Ramming . | . . . Kinetic 549 | . 324 225 Thermal 466 | . 166 300 Explosive . | . . . Electromagnetic . | . . . Impact . | . . . Slashing . | . . . Piercing . | . . . Highest Corruption . | . . . Average Corruption . | . . . Corruption Purged . | . . . Corruption Blocked . | . . . Overload Shots . | . . . Overflow Damage . | . . . Projectiles . | . . . Explosions . | . . . Melee . | . . . Knockbacks . | . . . Impact . | . . . Kinetic . | . . . Secondary . | . . . Self-Inflicted Damage . | . . . Shots . | . . . Rammed . | . . . Targets Rammed . | . . . Kicked . | . . . Crushed . | . . . Highest Temperature 544 | . 114 544 Average Temperature 163 | . 38 220 Received Heat Transfer 639 | . 216 423 Effects 17 | . . 17 Shutdowns 1 | . . 1 Interference 5 | . . 5 Matter Decay 1 | . . 1 Damage (minor) 2 | . . 2 Damage (major) 8 | . . 8 Siege Activations . | . . . Robots Corrupted . | . . . Combat Hostiles . | . . . Parts Fried . | . . . Impact Corruptions . | . . . Robots Melted . | . . . Combat Hostiles . | . . . Parts Melted 3 | . 1 2 Heat Transferred 1520 | . 555 965 Parts Sabotaged . | . . . Parts Stolen . | . . . Parts Stripped . | . . . Power Chain Reactions . | . . . Alert | -11 -10 -9 ------- Run | Yrd Mat Mat Peak Influence 242 | . 197 242 Initial 42 | . . 42 Average 64 | . 58 86 Maximum Alert Level 1 | . . 1 Low Security (%) 99 | 100 100 98 Level 1 . | . . 1 Level 2 . | . . . Level 3 . | . . . Level 4 . | . . . Level 5 . | . . . High Security . | . . . Max Security . | . . . Squads Dispatched 5 | . 4 1 Investigation 1 | . 1 . Extermination . | . . . Reinforcement 4 | . 3 1 Assault . | . . . Garrison . | . . . Intercept . | . . . Searches Triggered . | . . . Construction Impeded . | . . . Haulers Reinforced . | . . . Active Scanning Responses . | . . . Cargo Convoy Interrupts . | . . . Stealth | -11 -10 -9 --------- Run | Yrd Mat Mat Distress Signals 2 | . 1 1 Communications Jammed . | . . . Distress Signals . | . . . Times Spotted 37 | . 18 19 Peak Tracking Total 9 | . 5 9 Tactical Retreats 3 | . 2 1 Traps | -11 -10 -9 ------- Run | Yrd Mat Mat Traps Triggered 1 | . 1 . Indirectly . | . . . Trap Hack Attempts . | . . . Triggered . | . . . Disarmed . | . . . Reprogrammed . | . . . Reused . | . . . Traps Extracted . | . . . Installed . | . . . Triggered . | . . . Machines | -11 -10 -9 ---------- Run | Yrd Mat Mat Machines Disabled . | . . . Max in Single Turn . | . . . Machines Repaired . | . . . Machines Dismantled . | . . . Machines Sabotaged . | . . . Overloaded Fab Kills . | . . . Hacking | -11 -10 -9 --------- Run | Yrd Mat Mat Machines Accessed . | . . . Terminals . | . . . Fabricators . | . . . Repair Stations . | . . . Recycling Units . | . . . Scanalyzers . | . . . Garrison Access . | . . . Total Hacks . | . . . Successful . | . . . Failed . | . . . Catastrophic . | . . . Database Lockouts . | . . . Manual . | . . . Terminals . | . . . Fabricators . | . . . Repair Stations . | . . . Recycling Units . | . . . Scanalyzers . | . . . Garrison Access . | . . . Terminal Hacks . | . . . Fabricator Hacks . | . . . Repair Station Hacks . | . . . Recycling Unit Hacks . | . . . Scanalyzer . | . . . Garrison Access Hacks . | . . . Unauthorized Hacks . | . . . Terminals . | . . . Fabricators . | . . . Repair Stations . | . . . Recycling Units . | . . . Scanalyzers . | . . . Garrison Access . | . . . Data Cores Recovered . | . . . Used . | . . . Hacking Detections . | . . . Full Trace Events . | . . . Feedback Events . | . . . Feedback Blocked . | . . . Robot Schematics Acquired . | . . . Robots Built . | . . . Authchips . | . . . Time . | . . . Total Robot Build Rating . | . . . Part Schematics Acquired . | . . . Parts Built . | . . . Authchips . | . . . Time . | . . . Total Part Build Rating . | . . . Parts Repaired . | . . . Time . | . . . Parts Recycled . | . . . Recycled Matter . | . . . Retrieved Matter . | . . . Retrieved Components . | . . . Parts Scanalyzed . | . . . Part Schematics Acquired . | . . . Parts Damaged . | . . . Bothacking | -11 -10 -9 ------------ Run | Yrd Mat Mat Used RIF Installer . | . . . Robots Hacked . | . . . Non-combat . | . . . Combat . | . . . Robot Hacks Applied . | . . . Relay Couplers Released . | . . . Fabnet Peak Effective % . | . . . Robots Rewired . | . . . Allies Hacked . | . . . Hacks Repelled . | . . . Allies | -11 -10 -9 -------- Run | Yrd Mat Mat Total Allies . | . . . Largest Group . | . . . Highest-Rated Group . | . . . Highest-Rated Ally . | . . . Total Orders . | . . . Ally Attacks . | . . . Total Damage . | . . . Kills . | . . . Allies Corrupted . | . . . Allies Melted . | . . . Intel | -11 -10 -9 ------- Run | Yrd Mat Mat Robot Analysis Total . | . . . Derelict Logs Recovered . | . . . Drone Launches . | . . . Drone Recoveries . | . . . Exploration | -11 -10 -9 ------------- Run | Yrd Mat Mat Turns Passed 1227 | 115 597 515 Spaces Moved 539 | 68 281 190 Core 11 | 7 . 4 Treads 344 | 61 260 23 Legs 184 | . 21 163 Wheels . | . . . Hover . | . . . Flight . | . . . Fastest Speed 50 | 50 160 50 Average Speed 170 | 148 162 189 Slowest Speed 550 | 160 190 550 Overloaded Moves . | . . . Propulsion Burnouts . | . . . Robots Hopped . | . . . Cave-ins Triggered . | . . . Exploration Rate (%) 23 | 5 47 17 Regions Visited 2 Branch Regions . Pre-discovered Areas . | . . . Known Exits Taken . | . . . Unknown Exits Taken 2 | 1 1 . Scrap Searched . | . . . Spaces Dug . | . . . Terrain Destroyed . | . . . Melee . | . . . Projectile . | . . . AOE . | . . . Terrain Rammed . | . . . Walls Destroyed . | . . . Machines Disabled . | . . . Actions | -11 -10 -9 --------- Run | Yrd Mat Mat Total 722 | 79 356 287 Wait 68 | . 27 41 Move 537 | 67 280 190 Hop . | . . . Pick Up 18 | 6 3 9 Fast Attach 10 | 6 1 3 Attach 4 | . . 4 Detach 1 | . 1 . Swap 10 | . 6 4 Drop 5 | . 2 3 Fire 69 | . 36 33 Melee . | . . . Ram . | . . . Kick . | . . . Crush . | . . . Escape Stasis . | . . . Rewire . | . . . Trap . | . . . Miscellaneous . | . . . Route ------- -11/Scrapyard -10/Materials (discovered 2 exits: [*Mat] / [*Min]) -9/Materials (discovered 1 exit: [*Min]) History --------- Turn | Location | Event 21 | -11/Scrapyard | Discovered new exit (range 16) 116 | -11/Scrapyard | Entered Materials 212 | -10/Materials | Discovered new exit (range 13) 307 | -10/Materials | Build established: Mutant 518 | -10/Materials | Discovered new exit (range 7) 713 | -10/Materials | Entered another Materials area 713 | -9/Materials | Evolved 2 slots: Weapon x2 715 | -9/Materials | Discovered new exit (range 12) 1005 | -9/Materials | Build established: Tank 1207 | -9/Materials | Core integrity fell below 50% 1220 | -9/Materials | Core integrity fell below 20% 1228 | -9/Materials | Destroyed by G-47 Trooper with Particle Gun Last Messages --------------- 01197_ K-01 Serf collects debris. 01200_ Beam Cannon destroyed. 01200_ K-01 Serf collects debris. 01202_ Med. Laser destroyed. 01202_ Particle Gun destroyed. 01203_ Lgt. Armor Plating destroyed. 01204_ K-01 Serf collects debris. 01210_ S-10 Pest destroyed. 01212_ Material Processor disabled. 01214_ Critical hit (Burn: +37). 01214_ K-01 Serf collects debris. 01215_ Acquired Lgt. Assault Rifle. 01217_ K-01 Serf collects debris. 01218_ Lgt. Assault Rifle destroyed. 01219_ Lrg. Storage Unit destroyed. 01219_ K-01 Serf collects debris. 01221_ S-10 Pest destroyed. 01222_ Acquired Ion Engine. 01222_ K-01 Serf collects debris. 01227_ Ion Engine destroyed. Map ----- +----------------------------------------------------+ | ?????????????????????????????????????????????????? | | ?????????????????????????????????????????????????? | | ?????????????????????????????????????????????????? | | ?????????????????????????????????????????????????? | | ?????????????????????????????????????????????????? | | ?????????????????????????????????????????????????? | | ?????????????????????????????????????????????????? | | ?????????????????????????????????????????????????? | | ?????????????????????????????????????????????????? | | ?????????????????????????????????????????????????? | | ?????????????????????????????????????????????????? | | ?????????????????????????????????????????????????? | | ?????????????????????????????????? ??????????????? | | ????????????????????????????????? "??????????????? | | ????????????????????????????????" "??????????????? | | ??###########???????????????????" ???????????????? | | ??# #??????????????????? ???????????????? | | ??# #??????????????????? ???????????????? | | ??# """ """ #????????????###?###+####????????????? | | ??# """ """ #????######### ### ? #??????????? | | ??# """ """ #????# a # #??????????? | | ??# """ """ #????# """ ! # """" +??????????? | | ??# """ """ #????# """""=!# """" #??????????? | | ??# #????# """""*=# """"[ ####### ???? | | ??#######+###????# % """""*%g[k ??? | | ???# ###### = ""@s=%# % ??? | | ???# + [t!*!%k[*/g= ??? | | ???# ###################+#####+##?????????? | | ???# ##+#########??????????? ???????????????? | | ???# ## #??????????? ??????????????? | | ???# ## """ """ #?????????? ?????????????? | | ???# ## """ """ #?????????? #????????????? | | ???# ## """ """ #????????? ]![ #????????????? | | ???# ## #????????? ![ #????????????? | | ??## ## " " #???????? ![ #????????????? | | ??# # "R" #???????? #????????????? | | ??# # """ !#???????###########????????????? | | ??# %[ ###########??????????????????????????????? | | ??# =! #??# #??????????????????????????????? | | ??# #??# "T" #??????????????????????????????? | | ??### ###??# """ #??????????????????????????????? | | ????# ###### #??????????????????????????????? | | ????# ## ##+#####??????????????????????????????? | | ????# < #??????????????????????????????????? | | ????# ## ## #??????????????????????????????????? | | ????# ### ### #??????????????????????????????????? | | ????# #?# #?# #??????????????????????????????????? | | #####+### #?#+######?????????????????????????????? | | # #?# #?????????????????????????????? | | """"" # #?# #?????????????????????????????? | +----------------------------------------------------+ Best States ------------- Heat Dissipation 28 Energy Generation 10 Energy Capacity 250 Matter Stores 300 Matter Capacity 300 Sight Range 16 Terrain Scan Density 10 Armor Coverage 150 Evasion (%) 40 Recoil Reduction 2 Item Schematics ----------------- None Robot Schematics ------------------ None Fabricated ------------ Nothing Alien Tech Used ----------------- None Achievements -------------- None Challenges ------------ None Game ------ Seed AnalysisAngularHumpback Manual? 0 Play Time 00:10:51 Cumulative 7.8 hours Start 2024.11.04 @ 21:25:53 End 2024.11.04 @ 21:35:37 Sessions 1 Manual Loads 0 Difficulty Rogue Special Mode None Game No. 33 Rogue 33 Adventurer 0 Explorer 0 Win Type - Total 0 Types 0/0/0/0/0/0/0/0/0 Lore% 5 Gallery% 14 Achievement% 12 Wizard Run 0 Options --------- Layout 1 ASCII 0 Keyboard 0 Movement Numpad Keybinds 0 Fullscreen 1 Font 24/Smallcaps Map View 50x35 Zoom Use 0% Tactical HUD 1 Map Filters NONE Filters NONE Steam 1 RUN: 8f1d5d8e-0dc2-43d9-864b-a3d35c78d6eb